[Event "Czech Open-Rapid 2022"]
[Site "Pardubice"]
[Date "2022.07.21"]
[Round "7.25"]
[White "Jonsson, Gauti Pall"]
[Black "Brozka, Karel"]
[Result "0-1"]
[ECO "B10"]
[WhiteElo "2071"]
[BlackElo "2188"]
[Annotator "RC"]
[PlyCount "126"]
[EventDate "2022.07.20"]
[EventType "swiss"]
[EventCountry "CZE"]
[SourceTitle "playchess.com"]
[Source "ChessBase"]
[SourceQuality "1"]
[TimeControl "1200+10"]

1. e4 {[%emt 0:00:10]} c6 {[%emt 0:00:01]} 2. Nc3 {[%emt 0:00:07]} d5 {[%emt 0:00:01]} 3. Nf3 {[%emt 0:00:04]} dxe4 {[%emt 0:00:02]} 4. Nxe4 {[%emt 0:00:06]} Nf6 {[%emt 0:00:07]} 5. Qe2 {[%emt 0:00:21]} Nxe4 {[%emt 0:00:08]} 6. Qxe4 {[%emt 0:00:03]} Nd7 {[%emt 0:00:04]} 7. Bc4 {[%emt 0:00:14]} Nf6 {[%emt 0:00:05]} 8. Ne5 {[%emt 0:00:03]} e6 {[%emt 0:00:11]} 9. Qe2 {[%emt 0:00:19]} Bd6 {[%emt 0:00:32]} 10. O-O {[%emt 0:00:37]} O-O {[%emt 0:00:12]} 11. d4 {[%emt 0:00:44]} Qc7 {[%emt 0:00:29]} 12. Bg5 {[%emt 0:02:14]} Nd7 {[%emt 0:06:38]} 13. Nxf7 {[%emt 0:00:22]} Rxf7 {[%emt 0:00:04]} 14. Bxe6 {[%emt 0:00:11]} Bxh2+ {[%emt 0:01:27]} 15. Kh1 {[%emt 0:00:03]} Bd6 {[%emt 0:00:19]} 16. Bxf7+ {[%emt 0:01:02]} Kxf7 {[%emt 0:00:01]} 17. Rae1 {[%emt 0:00:01]} Nf6 {[%emt 0:04:36]} 18. Bxf6 {[%emt 0:00:03]} Kxf6 {[%emt 0:01:15]} 19. Qf3+ {[%emt 0:00:01]} Kg6 {[%emt 0:00:12]} 20. g4 {[%emt 0:02:10]} Bd7 {[%emt 0:01:53]} 21. Qe4+ {[%emt 0:01:19]} Kf7 {[%emt 0:00:07]} 22. Qxh7 {[%emt 0:01:08]} Qa5 {[%emt 0:03:03]} 23. f3 {[%emt 0:02:35]} Qd5 {[%emt 0:00:10]} 24. Re4 {[%emt 0:00:45]} Re8 {[%emt 0:01:02]} 25. c4 {[%emt 0:01:57]} Qg5 {[%emt 0:00:18]} 26. Kg2 {[%emt 0:01:05]} Qd2+ {[%emt 0:00:43]} 27. Rf2 {[%emt 0:00:06]} Qg5 {[%emt 0:00:01]} 28. Rxe8 {[%emt 0:03:52]} Bxe8 {[%emt 0:00:16]} 29. Re2 {[%emt 0:00:30]} Bd7 {[%emt 0:00:24]} 30. c5 {[%emt 0:00:01]} Bc7 {[%emt 0:00:21]} 31. Kf2 {[%emt 0:00:36]} Qf4 {[%emt 0:00:18]} 32. Qe4 {[%emt 0:01:28]} Qg3+ {[%emt 0:00:05]} 33. Kf1 {[%emt 0:00:01]} Qh3+ {[%emt 0:00:09]} 34. Ke1 {[%emt 0:00:02]} Qh4+ {[%emt 0:00:03]} 35. Kd1 {[%emt 0:00:07]} Qf6 {[%emt 0:00:17]} 36. b3 {[%emt 0:00:07]} Be6 {[%emt 0:00:13]} 37. Kc2 {[%emt 0:00:50]} Bf4 {[%emt 0:00:19]} 38. Kc3 {[%emt 0:00:10]} Bc7 {[%emt 0:00:03]} 39. Re1 {[%emt 0:00:14]} Ba5+ {[%emt 0:00:13]} 40. b4 {[%emt 0:00:03]} Bc7 {[%emt 0:00:01]} 41. g5 {[%emt 0:00:21]} Qf5 {[%emt 0:00:16]} 42. g6+ {[%emt 0:00:00]} Kf6 {[%emt 0:00:11]} 43. Qh4+ {[%emt 0:00:06]} Kxg6 {[%emt 0:00:06]} 44. Rg1+ {[%emt 0:00:20]} Kf7 {[%emt 0:00:03]} 45. Qf2 {[%emt 0:00:37]} Bd5 {[%emt 0:00:05]} 46. Qe3 {[%emt 0:00:10]} Bf4 {[%emt 0:00:14]} 47. Qe2 {[%emt 0:00:04]} Bxf3 {[%emt 0:00:13]} 48. Qf2 {[%emt 0:00:24]} Bd5 {[%emt 0:00:06]} 49. Rf1 {[%emt 0:00:01]} Qh3+ {[%emt 0:00:09]} 50. Kb2 {[%emt 0:00:02]} g5 {[%emt 0:00:04]} 51. Qe2 {[%emt 0:00:06]} Qh8 {[%emt 0:00:32]} 52. Kc3 {[%emt 0:00:04]} Qh3+ {[%emt 0:00:05]} 53. Kb2 {[%emt 0:00:01]} Qg2 {[%emt 0:00:03]} 54. Rf2 {[%emt 0:00:03]} Qe4 {[%emt 0:00:09]} 55. Qh5+ {[%emt 0:00:01]} Kg7 {[%emt 0:00:02]} 56. Qd1 {[%emt 0:00:14]} Be3 {[%emt 0:00:22]} 57. Re2 {[%emt 0:00:06]} Qxd4+ {[%emt 0:00:02]} 58. Qxd4+ {[%emt 0:00:05]} Bxd4+ {[%emt 0:00:01]} 59. Kc2 {[%emt 0:00:03]} g4 {[%emt 0:00:15]} 60. Kd3 {[%emt 0:00:01]} Bf6 {[%emt 0:00:12]} 61. Ke3 {[%emt 0:00:21]} g3 {[%emt 0:00:05]} 62. Kf4 {[%emt 0:00:11]} g2 {[%emt 0:00:06]} 63. Re1 {[%emt 0:00:02]} Bd4 {[%emt 0:00:04]} 0-1

[Event "Czech Open-Rapid 2022"]
[Site "Pardubice"]
[Date "2022.07.21"]
[Round "7.26"]
[White "Tolmacevs, Artjoms"]
[Black "Babula, Vlastimil jr"]
[Result "0-1"]
[ECO "B66"]
[WhiteElo "2022"]
[BlackElo "2039"]
[Annotator "TA"]
[PlyCount "70"]
[EventDate "2022.07.20"]
[EventType "swiss"]
[EventCountry "CZE"]
[SourceTitle "playchess.com"]
[Source "ChessBase"]
[SourceQuality "1"]
[TimeControl "1200+10"]

{[%evp 15,70,32,40,7,35,17,56,48,47,-42,-40,-33,0,-67,-62,-56,-14,-29,-18,-14,-19,-39,0,-89,-73,-48,-34,-181,-137,-145,-138,-140,-100,-75,-8,-10,0,-264,-198,-752,-471,-29991,-29992,-29992,-29993,-29993,-29994,-29994,-29990,-29990,0,-29994,-29995,-29995,-29996,-29997,-29998]} 1. e4 {[%emt 0:00:01]} c5 {[%emt 0:00:01]} 2. Nf3 {[%emt 0:00:01]} d6 {[%emt 0:00:01]} 3. d4 {[%emt 0:00:01]} cxd4 {[%emt 0:00:01]} 4. Nxd4 {[%emt 0:00:02]} Nf6 {[%emt 0:00:02]} 5. Nc3 {[%emt 0:00:02]} Nc6 {[%emt 0:00:01]} 6. Bg5 {[%emt 0:00:05]} e6 {[%emt 0:00:01]} 7. Qd2 {[%emt 0:00:27]} a6 {[%emt 0:00:02]} 8. O-O-O {[%emt 0:00:06]} Be7 {[%emt 0:00:02]} 9. f3 {[%emt 0:00:51] B66: Sicilian: Richter-Rauzer: 7...a6 8 0-0-0 h6.} Qc7 {[%emt 0:00:28]} 10. Kb1 {[%emt 0:03:31]} b5 {[%emt 0:00:44]} 11. Nxc6 {[%emt 0:03:15] White is slightly better.} Qxc6 {[%emt 0:00:08] [#]} 12. e5 $146 {[%emt 0:00:03]} (12. h4 $14) ({Predecessor:} 12. Bd3 Bb7 13. h4 h6 14. Be3 Rc8 15. g4 Nd7 16. g5 Ne5 17. gxh6 gxh6 18. f4 {1-0 (52) Ladron de Guevara Pinto,P (2414)-Buendia Pinar,A (2307) Linares 2017}) 12... dxe5 $15 {[%emt 0:01:24]} 13. Ne4 {[%emt 0:00:01]} Bb7 {[%emt 0:02:03]} 14. Nxf6+ {[%emt 0:00:12]} (14. Bxf6 $11 Bxf6 15. Nd6+ Kf8 16. Nxb7 Qxb7 17. Bd3) 14... gxf6 {[%emt 0:00:12]} 15. Bh6 {[%emt 0:00:19]} Rd8 {[%emt 0:03:54]} 16. Bd3 {[%emt 0:00:05] Black must now prevent Bg7.} Rg8 {[%emt 0:00:44] Inhibits Bg7.} 17. Qe2 {[%emt 0:00:33]} Qc7 $36 {[%emt 0:02:15][%mdl 2048] Black has some pressure.} 18. Rhe1 {[%emt 0:03:38]} f5 {[%emt 0:00:31]} 19. a4 {[%emt 0:02:40]} (19. g4 $1 $11 {keeps the balance.}) 19... bxa4 {[%emt 0:01:57] Hoping for ...Bf6. Black is more active.} 20. Bxa6 {[%emt 0:00:06]} Bd6 {[%emt 0:00:54]} 21. h4 {[%emt 0:03:42]} (21. Bxb7 $1 $15 Qxb7 22. Bc1) 21... Ke7 {[%emt 0:00:50]} 22. g4 {[%emt 0:01:08]} Bxa6 {[%emt 0:01:55]} 23. Qxa6 {[%emt 0:00:04]} fxg4 {[%emt 0:00:31] Really sharp!} 24. fxg4 {[%emt 0:00:13] [#]} Rxg4 {[%emt 0:00:48]} (24... a3 $1 $17 {[%cal Ra3b2] Strongly threatening ...axb2.} 25. Re3 (25. Bg5+ $2 f6 $19) 25... Ra8 26. Bg5+ f6 27. Bxf6+ Kxf6 28. Qxd6 Qxd6 29. Rxd6 a2+ 30. Ka1 Rxg4) 25. Rf1 $11 {[%emt 0:00:15]} f6 {[%emt 0:00:35] Inhibits Bg5.} 26. h5 $2 {[%emt 0:01:11][%mdl 8192]} (26. Rg1 $1 $11 Qc4 27. Qxc4 Rxc4 28. Rg7+ Ke8 29. Rxh7 (29. Rg8+ Ke7 $14)) 26... a3 {[%emt 0:00:40] And now ...axb2 would win.} ({Weaker is} 26... Rc8 {[#]} 27. Rxd6 $1 {[%mdl 512]} Qxc2+ 28. Ka1 $16) 27. Qe2 $2 {[%emt 0:01:01]} (27. Rd3) 27... Rdg8 {[%emt 0:00:47] aiming for ...Rb4.} 28. b3 {[%emt 0:00:43]} (28. Qa6 $19 f5 29. Rd3) 28... Qc3 {[%emt 0:00:32][%csl Ga3][%cal Rc3b2]} 29. Kc1 {[%emt 0:00:13]} Qb2+ {[%emt 0:00:47]} 30. Kd2 {[%emt 0:00:01]} Bb4+ {[%emt 0:00:04]} 31. Ke3 {[%emt 0:00:08]} Bc5+ {[%emt 0:00:04]} 32. Kd2 {[%emt 0:00:36]} Bb4+ {[%emt 0:00:52]} 33. Ke3 {[%emt 0:00:02]} Qc3+ {[%emt 0:00:02] Black mates.} 34. Qd3 {[%emt 0:00:20]} Bc5+ {[%emt 0:00:09]} 35. Kf3 {[%emt 0:00:10]} e4+ {[%emt 0:00:13] Weighted Error Value: White=0.99/Black=0.33} 0-1

[Event "Czech Open-Rapid 2022"]
[Site "Pardubice"]
[Date "2022.07.21"]
[Round "7.27"]
[White "Dolensky, Filip"]
[Black "Bertram, Karsten"]
[Result "1-0"]
[ECO "A06"]
[WhiteElo "2051"]
[BlackElo "2062"]
[Annotator "NA RC"]
[PlyCount "97"]
[EventDate "2022.07.20"]
[EventType "swiss"]
[EventCountry "CZE"]
[SourceTitle "playchess.com"]
[Source "ChessBase"]
[SourceQuality "1"]
[TimeControl "1200+10"]

1. Nf3 {[%emt 0:00:04]} d5 {[%emt 0:00:00]} 2. g3 {[%emt 0:00:01]} Nc6 {[%emt 0:00:07]} 3. d4 {[%emt 0:00:15]} Bf5 {[%emt 0:00:08]} 4. Bg2 {[%emt 0:00:06]} Qd7 {[%emt 0:00:04]} 5. c4 {[%emt 0:00:31]} dxc4 {[%emt 0:02:00]} 6. O-O {[%emt 0:00:49]} Bh3 {[%emt 0:00:30]} 7. Qa4 {[%emt 0:01:46]} Bxg2 {[%emt 0:00:06]} 8. Kxg2 {[%emt 0:00:02]} O-O-O {[%emt 0:00:11]} 9. Qxc4 {[%emt 0:00:22]} e6 {[%emt 0:00:49]} 10. Nc3 {[%emt 0:00:41]} Nf6 {[%emt 0:00:55]} 11. Bf4 {[%emt 0:01:11]} Nd5 {[%emt 0:00:12]} 12. Nxd5 {[%emt 0:00:22]} exd5 {[%emt 0:00:15]} 13. Qa4 {[%emt 0:00:46]} f6 {[%emt 0:00:10]} 14. Rac1 {[%emt 0:02:06]} g5 {[%emt 0:02:16]} 15. Bd2 {[%emt 0:00:41]} Kb8 {[%emt 0:01:47]} 16. b4 {[%emt 0:00:36]} Ne7 {[%emt 0:04:52]} 17. Qc2 {[%emt 0:01:28]} h5 {[%emt 0:00:06]} 18. h4 {[%emt 0:00:32]} g4 {[%emt 0:01:12]} 19. Ne1 {[%emt 0:00:19]} Nf5 {[%emt 0:00:04]} 20. Qc3 {[%emt 0:01:06]} Nd6 {[%emt 0:01:30]} 21. Bf4 {[%emt 0:00:25]} Bh6 {[%emt 0:00:12]} 22. Nd3 {[%emt 0:00:48]} Bxf4 {[%emt 0:01:26]} 23. Nxf4 {[%emt 0:00:01]} Ne4 {[%emt 0:00:11]} 24. Qd3 {[%emt 0:00:02]} f5 {[%emt 0:00:22]} 25. e3 {[%emt 0:00:13]} Rh6 {[%emt 0:00:01]} 26. Rc2 {[%emt 0:00:11]} Qa4 {[%emt 0:00:08]} 27. Rfc1 {[%emt 0:00:12]} c6 {[%emt 0:00:34]} 28. b5 {[%emt 0:00:01]} Qxb5 {[%emt 0:01:16]} 29. Qxb5 {[%emt 0:00:01]} cxb5 {[%emt 0:00:02]} 30. Nxd5 {[%emt 0:00:05]} Ra6 {[%emt 0:00:14]} 31. Ne7 {[%emt 0:00:09]} Nd6 {[%emt 0:00:06]} 32. Kf1 {[%emt 0:01:56]} Ra4 {[%emt 0:00:09]} 33. Ke2 {[%emt 0:01:52]} Rc4 {[%emt 0:00:14]} 34. Kd3 {[%emt 0:00:34]} a6 {[%emt 0:00:24]} 35. Ng6 {[%emt 0:00:30]} Rdc8 {[%emt 0:00:50]} 36. Ne5 {[%emt 0:00:06]} Rxc2 {[%emt 0:00:06]} 37. Rxc2 {[%emt 0:00:01]} Rxc2 {[%emt 0:00:05]} 38. Kxc2 {[%emt 0:00:01]} Ne4 {[%emt 0:00:11]} 39. Ng6 {[%emt 0:00:47]} Kc7 {[%emt 0:00:20]} 40. Ne7 {[%emt 0:00:20]} Nxf2 {[%emt 0:00:44]} 41. Nxf5 {[%emt 0:00:05]} Nh1 {[%emt 0:01:08]} 42. e4 {[%emt 0:00:13]} a5 {[%emt 0:00:01]} 43. d5 {[%emt 0:00:12]} b4 {[%emt 0:00:10]} 44. e5 {[%emt 0:00:32]} Nf2 {[%emt 0:00:31]} 45. e6 {[%emt 0:00:18]} Ne4 {[%emt 0:00:01]} 46. Kd3 {[%emt 0:00:08]} Nf6 {[%emt 0:00:38]} 47. d6+ {[%emt 0:00:40]} Kd8 {[%emt 0:00:09]} 48. Kc4 {[%emt 0:00:53]} b6 {[%emt 0:00:25]} 49. Kb5 {[%emt 0:00:45]} 1-0

[Event "Czech Open-Rapid 2022"]
[Site "Pardubice"]
[Date "2022.07.21"]
[Round "7.28"]
[White "Sosnik, Sebastian"]
[Black "Freibergs, Andrejs"]
[Result "1/2-1/2"]
[ECO "C03"]
[WhiteElo "2255"]
[BlackElo "1574"]
[Annotator "TA"]
[PlyCount "121"]
[EventDate "2022.07.20"]
[EventType "swiss"]
[EventCountry "CZE"]
[SourceTitle "playchess.com"]
[Source "ChessBase"]
[SourceQuality "1"]
[TimeControl "1200+10"]

{[%evp 9,121,14,40,46,44,49,58,52,51,37,47,42,56,50,137,49,147,150,157,112,122,114,204,206,197,159,215,212,284,200,308,295,290,262,268,209,276,227,347,349,277,232,3483,127,127,125,188,188,192,185,438,426,429,420,616,414,597,620,597,603,576,380,354,338,338,337,318,280,272,239,373,381,421,162,223,219,313,316,327,312,277,285,330,319,281,214,204,194,185,0,0,0,0,0,0,0,0,0,0,0,0,0,0,0,0,0,0,0,0,0,0,0,0,0]} 1. e4 {[%emt 0:00:02]} e6 {[%emt 0:00:03]} 2. d4 {[%emt 0:00:14]} d5 {[%emt 0:00:02]} 3. Nd2 {[%emt 0:00:02]} Be7 {[%emt 0:00:02]} 4. Bd3 {[%emt 0:00:29]} c5 {[%emt 0:01:27]} 5. dxc5 {[%emt 0:01:20]} Bxc5 {[%emt 0:00:06]} 6. Ngf3 {[%emt 0:00:11] C03: French Tarrasch: Unusual Black 3rd moves.} Nc6 {[%emt 0:00:43]} 7. O-O {[%emt 0:01:26]} Nf6 {[%emt 0:00:55]} 8. e5 {[%emt 0:04:22] White is slightly better.} Ng4 {[%emt 0:00:40]} 9. Qe2 {[%emt 0:00:40]} Qc7 {[%emt 0:03:00][%cal Rg4e5]} 10. Nb3 {[%emt 0:00:06]} Bb6 {[%emt 0:00:01][%cal Rg4e5]} 11. Bf4 {[%emt 0:00:27] [#]} h5 $146 {[%emt 0:01:06]} (11... f6 $14) ({Predecessor:} 11... f6 12. Bb5 O-O 13. Bxc6 bxc6 14. h3 Nxe5 15. Nxe5 fxe5 16. Bxe5 Qe7 17. Nd4 Bd7 {1-0 (61) Blagojevic,T (2315)-Bellaiche,E (2154) Porto Carras 2015}) 12. c3 {[%emt 0:02:11]} (12. h3 $16) 12... Bd7 {[%emt 0:00:49]} (12... f6 $14) 13. h3 $36 {[%emt 0:00:08][%mdl 2048] Keeping Black busy.} Nh6 {[%emt 0:00:03]} 14. Nbd4 {[%emt 0:00:04]} a6 {[%emt 0:00:40]} 15. Rac1 {[%emt 0:00:59] 0x0.0024873fc623dp-1022s more active pieces.} Ne7 {[%emt 0:01:37]} (15... Nxd4 $16 16. cxd4 Bc6) 16. c4 $18 {[%emt 0:00:43][%cal Bc3c4,Bc4c5][%mdl 32]} Bc6 {[%emt 0:00:12]} 17. c5 {[%emt 0:01:06]} Ba7 {[%emt 0:00:02]} (17... Ba5 $16 18. Rfd1 Qd7) 18. b4 {[%emt 0:00:37]} Bb8 {[%emt 0:00:29]} 19. Ng5 {[%emt 0:00:44]} Nhf5 {[%emt 0:04:08]} (19... g6 $142 20. Ngf3 Nhf5) 20. Bxf5 {[%emt 0:01:16]} Nxf5 {[%emt 0:00:02]} 21. Nxf5 {[%emt 0:00:10]} exf5 {[%emt 0:00:01]} 22. g3 {[%emt 0:01:55]} Bb5 {[%emt 0:00:46] [#]} 23. Qe3 {[%emt 0:00:43][%cal Oe5e6] And now e6! would win.} Bxf1 {[%emt 0:00:03] [#]} (23... O-O $142) (23... Qd7 24. Rfe1) 24. e6 $1 {[%emt 0:00:05]} Qe7 {[%emt 0:00:18] aiming for ...Bxf4.} 25. exf7+ {[%emt 0:01:25]} ({Not} 25. Kxf1 fxe6 26. Nxe6 Kf7 $14) 25... Kd7 $2 {[%emt 0:00:53]} (25... Kf8) 26. Kxf1 $2 {[%emt 0:00:48]} (26. c6+ $18 {is the precise move to win.} bxc6 27. Qb6) 26... Qxe3 $16 {[%emt 0:00:04]} 27. fxe3 {[%emt 0:00:03]} Bxf4 {[%emt 0:00:20]} (27... Ke7 $16) 28. exf4 $18 {[%emt 0:00:27][%mdl 4096] Endgame KRR-KRN} h4 {[%emt 0:00:31]} 29. Rd1 {[%emt 0:00:19]} g6 $2 {[%emt 0:01:28]} ({Less strong is} 29... hxg3 30. Rxd5+ Ke7 31. Rxf5) (29... Kc6) 30. Rxd5+ {[%emt 0:00:06]} Ke7 {[%emt 0:00:01]} 31. Re5+ {[%emt 0:00:27]} Kf6 {[%emt 0:00:04]} (31... Kd7 $142 32. Re6 Rab8 33. Rxg6 Ke7 34. gxh4 Rxh4) 32. Re6+ {[%emt 0:00:05]} Kg7 {[%emt 0:00:01]} 33. Re7 {[%emt 0:00:03]} Rab8 {[%emt 0:00:44]} 34. gxh4 {[%emt 0:00:40]} Rxh4 {[%emt 0:01:38]} 35. Ne6+ {[%emt 0:00:55]} Kf6 {[%emt 0:00:01]} 36. f8=Q+ {[%emt 0:00:15]} Rxf8 {[%emt 0:00:00]} 37. Nxf8 {[%emt 0:00:02]} Rxf4+ {[%emt 0:00:01] KRN-KR} 38. Kg2 {[%emt 0:00:05]} Rxb4 {[%emt 0:00:01]} 39. Re2 {[%emt 0:00:18]} Kf7 {[%emt 0:01:24]} (39... g5 $142 40. Nd7+ Kf7 41. Ne5+ Kf6 42. Nd7+ Kf7) 40. Ne6 {[%emt 0:00:25]} Rc4 {[%emt 0:00:05]} 41. Kf3 $2 {[%emt 0:00:09]} (41. Nd8+ Kf6 42. Re6+ Kg5 43. Nxb7) 41... Kf6 {[%emt 0:00:01]} (41... Rc3+ {keeps fighting.} 42. Kg2 Kf6) 42. Nf8 {[%emt 0:00:17] Black must now prevent Nd7+.} Rc3+ {[%emt 0:00:10]} (42... Kf7 {might work better.}) 43. Re3 {[%emt 0:00:07]} Rc2 {[%emt 0:00:12]} 44. a3 {[%emt 0:00:04]} Kf7 {[%emt 0:00:09]} 45. Nd7 {[%emt 0:00:02]} Rd2 {[%emt 0:00:09]} 46. Ne5+ {[%emt 0:00:08]} Kf6 {[%emt 0:00:01]} 47. Nd3 {[%emt 0:00:20]} g5 {[%emt 0:00:12]} 48. Nb4 {[%emt 0:00:10]} a5 {[%emt 0:00:17] [#]} 49. Nd3 {[%emt 0:00:16]} (49. Rd3 $1 $18 {[%cal Rd3d2]} Rh2 50. Kg3) 49... f4 $11 {[%emt 0:00:02] The position is equal.} 50. Nxf4 {[%emt 0:00:05]} gxf4 {[%emt 0:00:04]} 51. Kxf4 {[%emt 0:00:01] KR-KR} Rc2 {[%emt 0:00:10]} 52. Rb3 {[%emt 0:00:06]} Rc4+ {[%emt 0:00:09]} 53. Kg3 {[%emt 0:00:11]} Rxc5 {[%emt 0:00:01]} 54. Rb6+ {[%emt 0:00:02]} Kg5 {[%emt 0:00:04]} 55. a4 {[%emt 0:00:17]} Rc3+ {[%emt 0:00:26]} 56. Kg2 {[%emt 0:00:02]} Rc2+ {[%emt 0:00:10]} 57. Kf3 {[%emt 0:00:05]} Rc3+ {[%emt 0:00:03]} 58. Kg2 {[%emt 0:00:01]} Rc2+ {[%emt 0:00:01]} 59. Kf3 Rc4 60. Rb5+ Kh4 61. Kg2 {White really could win this.  Weighted Error Value: White=0.36/Black=0.38} 1/2-1/2

[Event "Czech Open-Rapid 2022"]
[Site "Pardubice"]
[Date "2022.07.21"]
[Round "7.29"]
[White "Kuznecova, Marija"]
[Black "Vokoun, Jan"]
[Result "1-0"]
[ECO "C41"]
[WhiteElo "1755"]
[BlackElo "2056"]
[Annotator "NA RC"]
[PlyCount "57"]
[EventDate "2022.07.20"]
[EventType "swiss"]
[EventCountry "CZE"]
[SourceTitle "playchess.com"]
[Source "ChessBase"]
[SourceQuality "1"]
[TimeControl "1200+10"]

1. e4 {[%emt 0:00:01]} d6 {[%emt 0:00:09]} 2. d4 {[%emt 0:00:03]} Nf6 {[%emt 0:00:01]} 3. Nc3 {[%emt 0:00:04]} e5 {[%emt 0:00:02]} 4. Nf3 {[%emt 0:00:17]} Nbd7 {[%emt 0:00:01]} 5. Be2 {[%emt 0:00:08]} c6 {[%emt 0:00:05]} 6. a4 {[%emt 0:00:28]} a5 {[%emt 0:00:03]} 7. h4 {[%emt 0:00:13]} Be7 {[%emt 0:01:02]} 8. Be3 {[%emt 0:01:02]} Qc7 {[%emt 0:00:27]} 9. Qd2 {[%emt 0:00:33]} Ng4 {[%emt 0:01:59]} 10. O-O-O {[%emt 0:01:46]} Nxe3 {[%emt 0:00:21]} 11. Qxe3 {[%emt 0:00:10]} Nb6 {[%emt 0:02:17]} 12. dxe5 {[%emt 0:01:15]} dxe5 {[%emt 0:00:03]} 13. Nxe5 {[%emt 0:01:59]} Qxe5 {[%emt 0:02:19]} 14. Qxb6 {[%emt 0:00:02]} O-O {[%emt 0:00:06]} 15. Bc4 {[%emt 0:03:30]} Bxh4 {[%emt 0:08:17]} 16. g3 {[%emt 0:01:35]} Be7 {[%emt 0:00:02]} 17. f4 {[%emt 0:01:01]} Qc5 {[%emt 0:00:06]} 18. Qb3 {[%emt 0:00:08]} Qb4 {[%emt 0:02:41]} 19. Qa2 {[%emt 0:00:35]} Bg4 {[%emt 0:00:26]} 20. Rdf1 {[%emt 0:01:52]} Bc5 {[%emt 0:00:19]} 21. Rh4 {[%emt 0:01:35]} h5 {[%emt 0:00:18]} 22. Be2 {[%emt 0:03:22]} Bd4 {[%emt 0:00:55]} 23. Bxg4 {[%emt 0:00:12]} Bxc3 {[%emt 0:00:03]} 24. bxc3 {[%emt 0:00:04]} Qxc3 {[%emt 0:00:02]} 25. Rxh5 {[%emt 0:00:48]} Qxg3 {[%emt 0:01:05]} 26. Rfh1 {[%emt 0:00:11]} Qxf4+ {[%emt 0:00:23]} 27. Kb1 {[%emt 0:00:02]} g6 {[%emt 0:00:13]} 28. Rh8+ {[%emt 0:00:02]} Kg7 {[%emt 0:00:01]} 29. Qb2+ 1-0

[Event "Czech Open-Rapid 2022"]
[Site "Pardubice"]
[Date "2022.07.21"]
[Round "7.30"]
[White "Franc, Lubor"]
[Black "Schatz, Christian"]
[Result "0-1"]
[ECO "B32"]
[WhiteElo "1747"]
[BlackElo "2137"]
[Annotator "NA RC"]
[PlyCount "70"]
[EventDate "2022.07.20"]
[EventType "swiss"]
[EventCountry "CZE"]
[SourceTitle "playchess.com"]
[Source "ChessBase"]
[SourceQuality "1"]
[TimeControl "1200+10"]

1. e4 {[%emt 0:00:04]} c5 {[%emt 0:00:07]} 2. Nf3 {[%emt 0:00:04]} Nc6 {[%emt 0:00:07]} 3. d4 {[%emt 0:00:06]} cxd4 {[%emt 0:00:04]} 4. Nxd4 {[%emt 0:00:03]} g6 {[%emt 0:00:16]} 5. g3 {[%emt 0:00:37]} Bg7 {[%emt 0:00:07]} 6. Nb3 {[%emt 0:00:02]} Nf6 {[%emt 0:00:19]} 7. Bg2 {[%emt 0:00:02]} O-O {[%emt 0:00:20]} 8. O-O {[%emt 0:00:15]} d6 {[%emt 0:00:26]} 9. h3 {[%emt 0:00:09]} Be6 {[%emt 0:00:11]} 10. Nc3 {[%emt 0:00:17]} Rc8 {[%emt 0:00:48]} 11. Nd5 {[%emt 0:02:19]} a5 {[%emt 0:02:11]} 12. a4 {[%emt 0:00:26]} Nb4 {[%emt 0:01:09]} 13. c3 {[%emt 0:00:11]} Nbxd5 {[%emt 0:00:27]} 14. exd5 {[%emt 0:00:03]} Bf5 {[%emt 0:00:44]} 15. Nd4 {[%emt 0:02:20]} Be4 {[%emt 0:00:32]} 16. Bxe4 {[%emt 0:05:35]} Nxe4 {[%emt 0:00:04]} 17. Be3 {[%emt 0:00:32]} Qd7 {[%emt 0:02:32]} 18. Kg2 {[%emt 0:00:07]} Nf6 {[%emt 0:00:34]} 19. Qb3 {[%emt 0:02:31]} Rc5 {[%emt 0:01:35]} 20. c4 {[%emt 0:01:00]} Rcc8 {[%emt 0:01:30]} 21. Rac1 {[%emt 0:00:29]} Ne4 {[%emt 0:00:09]} 22. Qb5 {[%emt 0:01:48]} Nc5 {[%emt 0:01:02]} 23. Qxd7 {[%emt 0:00:14]} Nxd7 {[%emt 0:00:01]} 24. b3 {[%emt 0:00:16]} Nc5 {[%emt 0:00:12]} 25. Rb1 {[%emt 0:00:07]} Rfe8 {[%emt 0:02:04]} 26. Nb5 {[%emt 0:00:28]} Ne4 {[%emt 0:02:11]} 27. f3 {[%emt 0:00:25]} Nc3 {[%emt 0:00:09]} 28. Nxc3 {[%emt 0:00:04]} Bxc3 {[%emt 0:00:02]} 29. Kf2 {[%emt 0:00:56]} e6 30. dxe6 {[%emt 0:01:21]} Rxe6 {[%emt 0:01:01]} 31. Rfd1 {[%emt 0:00:34]} Rce8 {[%emt 0:00:17]} 32. Rd3 {[%emt 0:00:13]} Bb4 {[%emt 0:00:06]} 33. Rb2 {[%emt 0:00:04]} Be1+ {[%emt 0:01:20]} 34. Ke2 {[%emt 0:01:20]} Bxg3 {[%emt 0:00:18]} 35. Kd2 {[%emt 0:00:01]} Rxe3 {[%emt 0:00:24]} 0-1

[Event "Czech Open-Rapid 2022"]
[Site "Pardubice"]
[Date "2022.07.21"]
[Round "7.31"]
[White "Hrabal, Matej"]
[Black "Polak, Benedikt"]
[Result "0-1"]
[ECO "B42"]
[WhiteElo "1950"]
[BlackElo "2120"]
[Annotator "NA RC"]
[PlyCount "58"]
[EventDate "2022.07.20"]
[EventType "swiss"]
[EventCountry "CZE"]
[SourceTitle "playchess.com"]
[Source "ChessBase"]
[SourceQuality "1"]
[TimeControl "1200+10"]

1. e4 {[%emt 0:00:03]} c5 {[%emt 0:00:02]} 2. Nf3 {[%emt 0:00:01]} e6 {[%emt 0:00:02]} 3. d4 {[%emt 0:00:04]} cxd4 {[%emt 0:00:03]} 4. Nxd4 {[%emt 0:00:01]} a6 {[%emt 0:00:01]} 5. Bd3 {[%emt 0:00:09]} Bc5 {[%emt 0:00:11]} 6. Nb3 {[%emt 0:00:44]} Be7 {[%emt 0:00:03]} 7. O-O {[%emt 0:00:31]} d6 {[%emt 0:00:08]} 8. Be3 {[%emt 0:00:21]} Nf6 {[%emt 0:00:18]} 9. c4 {[%emt 0:00:23]} b6 {[%emt 0:00:06]} 10. Nc3 {[%emt 0:00:12]} Bb7 {[%emt 0:00:09]} 11. f3 {[%emt 0:00:21]} O-O {[%emt 0:00:15]} 12. Nd4 {[%emt 0:00:50]} Nbd7 {[%emt 0:00:13]} 13. Rc1 {[%emt 0:01:27]} Rc8 {[%emt 0:00:13]} 14. b3 {[%emt 0:00:08]} Qc7 {[%emt 0:00:28]} 15. Qe2 {[%emt 0:00:25]} Rfe8 {[%emt 0:00:28]} 16. Rfd1 {[%emt 0:00:20]} Qb8 {[%emt 0:00:05]} 17. Qf2 {[%emt 0:00:04]} d5 {[%emt 0:04:10]} 18. cxd5 {[%emt 0:01:43]} exd5 {[%emt 0:00:03]} 19. Nxd5 {[%emt 0:01:28]} Bxd5 {[%emt 0:01:04]} 20. Rxc8 {[%emt 0:00:56]} Qxc8 {[%emt 0:00:16]} 21. exd5 {[%emt 0:00:54]} Nxd5 {[%emt 0:00:10]} 22. Bc1 {[%emt 0:04:03]} Bc5 {[%emt 0:03:49]} 23. Bf5 {[%emt 0:01:45]} Nc3 {[%emt 0:05:50]} 24. Rd2 {[%emt 0:05:17]} Ne2+ {[%emt 0:02:57]} 25. Rxe2 {[%emt 0:00:25]} Bxd4 {[%emt 0:00:28]} 26. Qxd4 {[%emt 0:00:27]} Rxe2 {[%emt 0:00:21]} 27. Bg5 {[%emt 0:00:51]} Qc5 {[%emt 0:00:27]} 28. Qxc5 {[%emt 0:00:33]} Nxc5 {[%emt 0:00:10]} 29. b4 {[%emt 0:00:13]} Ne6 0-1